[Event "Titled Tuesday Blitz February 28 Early 2023"]
[White "Drygalov, Andrey"]
[Black "Tologon tegin, Semetei"]
[WhiteFideId "24171735"]
[BlackFideId "13800574"]
[WhiteElo "2471"]
[BlackElo "2247"]
[Result "1-0"]
[Round "04"]
[TimeControl "180+2"]
[Date "2023.02.28"]
[WhiteClock "0:01:20"]
[BlackClock "0:00:10"]

1. e4 {[%clk 0:02:59]}  c6 {[%clk 0:02:59]} 2. Nf3 {[%clk 0:02:58]}  d5 {[%clk 0:03:00]} 3. d3 {[%clk 0:02:58]}  dxe4 {[%clk 0:02:59]} 4. dxe4 {[%clk 0:02:59]}  Qxd1+ {[%clk 0:02:59]} 5. Kxd1 {[%clk 0:03:00]}  Bg4 {[%clk 0:02:59]} 6. Be2 {[%clk 0:02:59]}  Nd7 {[%clk 0:02:58]} 7. Nbd2 {[%clk 0:02:57]}  e5 {[%clk 0:02:57]} 8. Ne1 {[%clk 0:02:53]}  Bxe2+ {[%clk 0:02:50]} 9. Kxe2 {[%clk 0:02:54]}  O-O-O {[%clk 0:02:50]} 10. Nd3 {[%clk 0:02:54]}  f6 {[%clk 0:02:45]} 11. Nc4 {[%clk 0:02:45]}  Nc5 {[%clk 0:02:42]} 12. f3 {[%clk 0:02:45]}  Nxd3 {[%clk 0:02:41]} 13. cxd3 {[%clk 0:02:46]}  Bc5 {[%clk 0:02:41]} 14. f4 {[%clk 0:02:41]}  exf4 {[%clk 0:02:35]} 15. Bxf4 {[%clk 0:02:41]}  Ne7 {[%clk 0:02:36]} 16. Rac1 {[%clk 0:02:41]}  Ng6 {[%clk 0:02:32]} 17. Bg3 {[%clk 0:02:42]}  Rhe8 {[%clk 0:01:56]} 18. Rhf1 {[%clk 0:02:41]}  Re6 {[%clk 0:01:55]} 19. a3 {[%clk 0:02:34]}  Bd4 {[%clk 0:01:54]} 20. b4 {[%clk 0:02:34]}  b6 {[%clk 0:01:53]} 21. h4 {[%clk 0:02:29]}  h6 {[%clk 0:01:31]} 22. a4 {[%clk 0:02:28]}  Kb7 {[%clk 0:01:30]} 23. b5 {[%clk 0:02:28]}  c5 {[%clk 0:01:30]} 24. a5 {[%clk 0:02:24]}  Be5 {[%clk 0:01:25]} 25. a6+ {[%clk 0:01:58]}  Kc7 {[%clk 0:01:21]} 26. Nxe5 {[%clk 0:01:39]}  Nxe5 {[%clk 0:01:20]} 27. Rf5 {[%clk 0:01:39]}  Kd6 {[%clk 0:01:10]} 28. Rcf1 {[%clk 0:01:34]}  Rde8 {[%clk 0:01:08]} 29. Ke3 {[%clk 0:01:26]}  Kd7 {[%clk 0:01:05]} 30. Bxe5 {[%clk 0:01:26]}  Rxe5 {[%clk 0:01:05]} 31. g4 {[%clk 0:01:27]}  Rxf5 {[%clk 0:00:49]} 32. gxf5 {[%clk 0:01:26]}  Kd6 {[%clk 0:00:43]} 33. Rg1 {[%clk 0:01:25]}  Re7 {[%clk 0:00:43]} 34. d4 {[%clk 0:01:26]}  cxd4+ {[%clk 0:00:40]} 35. Kxd4 {[%clk 0:01:26]}  Rc7 {[%clk 0:00:34]} 36. Rg6 {[%clk 0:01:24]}  Rd7 {[%clk 0:00:32]} 37. e5+ {[%clk 0:01:21]}  Ke7+ {[%clk 0:00:30]} 38. Ke4 {[%clk 0:01:22]}  Kf8 {[%clk 0:00:14]} 39. exf6 {[%clk 0:01:22]}  Rd1 {[%clk 0:00:14]} 40. fxg7+ {[%clk 0:01:22]}  Kg8 {[%clk 0:00:14]} 41. f6 {[%clk 0:01:22]}  Rf1 {[%clk 0:00:13]} 42. Rxh6 {[%clk 0:01:21]}  Kf7 {[%clk 0:00:11]} 43. Rh8 {[%clk 0:01:21]}  Rg1 {[%clk 0:00:10]} 44. Rf8+ {[%clk 0:01:20]} 1-0


[Site "https://www.chess.com"]

[Event "Titled Tuesday Blitz February 28 Early 2023"]
[White "Molina, Roberto Junio Brito"]
[Black "Domingo Nunez, Alejandro"]
[WhiteFideId "2109450"]
[BlackFideId "22245561"]
[WhiteElo "2376"]
[BlackElo "2230"]
[Result "1-0"]
[Round "04"]
[TimeControl "180+2"]
[Date "2023.02.28"]
[WhiteClock "0:00:23"]
[BlackClock "0:00:05"]

1. d4 {[%clk 0:02:57]}  g6 {[%clk 0:02:59]} 2. e4 {[%clk 0:02:57]}  Bg7 {[%clk 0:02:56]} 3. Nc3 {[%clk 0:02:57]}  c6 {[%clk 0:02:56]} 4. h4 {[%clk 0:02:56]}  h5 {[%clk 0:02:55]} 5. Be3 {[%clk 0:02:55]}  d5 {[%clk 0:02:52]} 6. e5 {[%clk 0:02:54]}  Nh6 {[%clk 0:02:52]} 7. Qd2 {[%clk 0:02:51]}  Nf5 {[%clk 0:02:46]} 8. Bf4 {[%clk 0:02:50]}  c5 {[%clk 0:02:12]} 9. dxc5 {[%clk 0:02:49]}  d4 {[%clk 0:02:11]} 10. O-O-O {[%clk 0:02:44]}  Nc6 {[%clk 0:02:11]} 11. Bb5 {[%clk 0:02:35]}  Qa5 {[%clk 0:02:00]} 12. Bxc6+ {[%clk 0:01:57]}  bxc6 {[%clk 0:02:00]} 13. Nb1 {[%clk 0:01:49]}  Qxa2 {[%clk 0:01:56]} 14. Qb4 {[%clk 0:01:45]}  Be6 {[%clk 0:01:36]} 15. Nf3 {[%clk 0:01:42]}  O-O {[%clk 0:01:20]} 16. Nxd4 {[%clk 0:01:41]}  Nxd4 {[%clk 0:01:20]} 17. Rxd4 {[%clk 0:01:42]}  Bd5 {[%clk 0:01:02]} 18. f3 {[%clk 0:01:38]}  Qa6 {[%clk 0:01:00]} 19. Rhd1 {[%clk 0:01:25]}  Rab8 {[%clk 0:00:56]} 20. Qa3 {[%clk 0:01:24]}  Qe2 {[%clk 0:00:45]} 21. R4d2 {[%clk 0:01:21]}  Qc4 {[%clk 0:00:44]} 22. g3 {[%clk 0:01:11]}  Rb7 {[%clk 0:00:36]} 23. b3 {[%clk 0:00:44]}  Rfb8 {[%clk 0:00:29]} 24. Rd4 {[%clk 0:00:43]}  Qb5 {[%clk 0:00:18]} 25. Nc3 {[%clk 0:00:37]}  Qxb3 {[%clk 0:00:04]} 26. cxb3 {[%clk 0:00:33]}  Rxb3 {[%clk 0:00:05]} 27. Qa5 {[%clk 0:00:23]} 1-0


[Site "https://www.chess.com"]

[Event "Titled Tuesday Blitz February 28 Early 2023"]
[White "Migot, Tangi"]
[Black "Harsh Suresh"]
[WhiteFideId "662445"]
[BlackFideId "45018464"]
[WhiteElo "2555"]
[BlackElo "2227"]
[Result "0-1"]
[Round "04"]
[TimeControl "180+2"]
[Date "2023.02.28"]
[WhiteClock "0:00:22"]
[BlackClock "0:00:09"]

1. d4 {[%clk 0:03:00]}  Nf6 {[%clk 0:02:59]} 2. c4 {[%clk 0:02:59]}  c5 {[%clk 0:02:59]} 3. d5 {[%clk 0:03:00]}  e6 {[%clk 0:02:58]} 4. Nc3 {[%clk 0:02:59]}  exd5 {[%clk 0:02:59]} 5. cxd5 {[%clk 0:03:00]}  d6 {[%clk 0:02:59]} 6. e4 {[%clk 0:03:00]}  g6 {[%clk 0:03:00]} 7. h3 {[%clk 0:02:57]}  Bg7 {[%clk 0:02:59]} 8. Bd3 {[%clk 0:02:58]}  O-O {[%clk 0:02:59]} 9. Nf3 {[%clk 0:02:58]}  Na6 {[%clk 0:02:58]} 10. O-O {[%clk 0:02:56]}  Nc7 {[%clk 0:02:58]} 11. Re1 {[%clk 0:02:57]}  Re8 {[%clk 0:02:58]} 12. Bf4 {[%clk 0:02:56]}  Rb8 {[%clk 0:02:45]} 13. a4 {[%clk 0:02:55]}  b6 {[%clk 0:02:45]} 14. Qc2 {[%clk 0:02:43]}  a6 {[%clk 0:02:24]} 15. Rab1 {[%clk 0:02:32]}  b5 {[%clk 0:02:23]} 16. axb5 {[%clk 0:02:31]}  axb5 {[%clk 0:02:24]} 17. b4 {[%clk 0:02:32]}  c4 {[%clk 0:02:22]} 18. Bf1 {[%clk 0:02:31]}  Bb7 {[%clk 0:02:05]} 19. Rbd1 {[%clk 0:02:27]}  Qd7 {[%clk 0:01:56]} 20. e5 {[%clk 0:02:16]}  Nfxd5 {[%clk 0:01:54]} 21. Nxd5 {[%clk 0:02:05]}  Nxd5 {[%clk 0:01:52]} 22. Bg3 {[%clk 0:01:58]}  Nxb4 {[%clk 0:01:26]} 23. Qb1 {[%clk 0:01:58]}  Nd5 {[%clk 0:01:20]} 24. Qc2 {[%clk 0:01:27]}  Rbc8 {[%clk 0:00:32]} 25. exd6 {[%clk 0:01:24]}  Nc3 {[%clk 0:00:22]} 26. Rxe8+ {[%clk 0:01:09]}  Rxe8 {[%clk 0:00:21]} 27. Re1 {[%clk 0:01:02]}  Rxe1 {[%clk 0:00:18]} 28. Nxe1 {[%clk 0:01:02]}  Ne4 {[%clk 0:00:17]} 29. Bh2 {[%clk 0:00:43]}  Bd4 {[%clk 0:00:17]} 30. Nf3 {[%clk 0:00:36]}  Bxf2+ {[%clk 0:00:17]} 31. Kh1 {[%clk 0:00:36]}  Bc5 {[%clk 0:00:16]} 32. Bf4 {[%clk 0:00:30]}  Bxd6 {[%clk 0:00:12]} 33. Bxd6 {[%clk 0:00:27]}  Qxd6 {[%clk 0:00:13]} 34. Qb2 {[%clk 0:00:24]}  Ng3+ {[%clk 0:00:08]} 35. Kg1 {[%clk 0:00:24]}  Qc5+ {[%clk 0:00:08]} 36. Qf2 {[%clk 0:00:21]}  Qxf2+ {[%clk 0:00:08]} 37. Kxf2 {[%clk 0:00:22]}  Nxf1 {[%clk 0:00:09]} 38. Kxf1 {[%clk 0:00:22]}  Bxf3 {[%clk 0:00:09]} 0-1


[Site "https://www.chess.com"]

[Event "Titled Tuesday Blitz February 28 Early 2023"]
[White "Kilic, Eray"]
[Black "Roebers, Eline"]
[WhiteFideId "44517173"]
[BlackFideId "1058401"]
[WhiteElo "2328"]
[BlackElo "2551"]
[Result "1-0"]
[Round "04"]
[TimeControl "180+2"]
[Date "2023.02.28"]
[WhiteClock "0:00:09"]
[BlackClock "0:00:05"]

1. d4 {[%clk 0:03:00]}  f5 {[%clk 0:02:56]} 2. g3 {[%clk 0:02:56]}  Nf6 {[%clk 0:02:56]} 3. Bg2 {[%clk 0:02:56]}  g6 {[%clk 0:02:56]} 4. Nf3 {[%clk 0:02:56]}  Bg7 {[%clk 0:02:56]} 5. O-O {[%clk 0:02:57]}  O-O {[%clk 0:02:57]} 6. c4 {[%clk 0:02:57]}  d6 {[%clk 0:02:58]} 7. d5 {[%clk 0:02:57]}  Qe8 {[%clk 0:02:56]} 8. Nc3 {[%clk 0:02:55]}  Na6 {[%clk 0:02:56]} 9. Nd4 {[%clk 0:02:53]}  Bd7 {[%clk 0:02:56]} 10. Rb1 {[%clk 0:02:50]}  c6 {[%clk 0:02:56]} 11. b4 {[%clk 0:02:44]}  Rc8 {[%clk 0:02:54]} 12. Qd3 {[%clk 0:02:25]}  h6 {[%clk 0:02:48]} 13. a3 {[%clk 0:02:16]}  Nc7 {[%clk 0:02:35]} 14. Bb2 {[%clk 0:02:11]}  Ng4 {[%clk 0:02:22]} 15. Nf3 {[%clk 0:02:02]}  g5 {[%clk 0:02:19]} 16. Qd2 {[%clk 0:01:47]}  Qh5 {[%clk 0:02:08]} 17. Nd1 {[%clk 0:01:26]}  Nf6 {[%clk 0:01:52]} 18. Ne3 {[%clk 0:01:13]}  f4 {[%clk 0:01:46]} 19. Nc2 {[%clk 0:01:00]}  cxd5 {[%clk 0:01:38]} 20. Bxf6 {[%clk 0:00:59]}  Bxf6 {[%clk 0:01:37]} 21. cxd5 {[%clk 0:01:00]}  Nb5 {[%clk 0:01:27]} 22. Nfd4 {[%clk 0:00:54]}  Nc3 {[%clk 0:01:03]} 23. Rb3 {[%clk 0:00:49]}  Na4 {[%clk 0:00:55]} 24. Qd3 {[%clk 0:00:34]}  Be5 {[%clk 0:00:49]} 25. Ne6 {[%clk 0:00:28]}  Bxe6 {[%clk 0:00:43]} 26. dxe6 {[%clk 0:00:29]}  Nc3 {[%clk 0:00:43]} 27. Re1 {[%clk 0:00:21]}  Rc7 {[%clk 0:00:41]} 28. Bf1 {[%clk 0:00:20]}  f3 {[%clk 0:00:38]} 29. e3 {[%clk 0:00:15]}  g4 {[%clk 0:00:26]} 30. Nd4 {[%clk 0:00:15]}  Na4 {[%clk 0:00:16]} 31. Qe4 {[%clk 0:00:14]}  Nc3 {[%clk 0:00:12]} 32. Qd3 {[%clk 0:00:12]}  Na4 {[%clk 0:00:12]} 33. Qe4 {[%clk 0:00:08]}  Nc3 {[%clk 0:00:12]} 34. Rxc3 {[%clk 0:00:09]}  Rxc3 {[%clk 0:00:11]} 35. Nb5 {[%clk 0:00:09]}  Rcc8 {[%clk 0:00:05]} 36. Bd3 {[%clk 0:00:09]} 1-0


[Site "https://www.chess.com"]

[Event "Titled Tuesday Blitz February 28 Early 2023"]
[White "Di Nicolantonio, Lucas"]
[Black "Ozen, Bahadir"]
[WhiteFideId "680460"]
[BlackFideId "6337058"]
[WhiteElo "2358"]
[BlackElo "2503"]
[Result "1-0"]
[Round "04"]
[TimeControl "180+2"]
[Date "2023.02.28"]
[WhiteClock "0:00:14"]
[BlackClock "0:00:18"]

1. Nf3 {[%clk 0:03:00]}  g6 {[%clk 0:02:59]} 2. e4 {[%clk 0:03:00]}  Bg7 {[%clk 0:02:57]} 3. d4 {[%clk 0:03:01]}  d6 {[%clk 0:02:58]} 4. Be3 {[%clk 0:03:01]}  Nf6 {[%clk 0:02:55]} 5. Nc3 {[%clk 0:02:59]}  O-O {[%clk 0:02:54]} 6. Qd2 {[%clk 0:02:58]}  Bg4 {[%clk 0:02:50]} 7. h4 {[%clk 0:02:56]}  Nc6 {[%clk 0:02:42]} 8. O-O-O {[%clk 0:02:55]}  e5 {[%clk 0:02:38]} 9. d5 {[%clk 0:02:45]}  Nd4 {[%clk 0:02:30]} 10. Nxd4 {[%clk 0:02:45]}  exd4 {[%clk 0:02:31]} 11. Bxd4 {[%clk 0:02:44]}  Bxd1 {[%clk 0:02:31]} 12. Qxd1 {[%clk 0:02:44]}  c5 {[%clk 0:02:19]} 13. Be3 {[%clk 0:02:44]}  a6 {[%clk 0:02:19]} 14. h5 {[%clk 0:02:36]}  b5 {[%clk 0:02:14]} 15. hxg6 {[%clk 0:02:27]}  fxg6 {[%clk 0:02:13]} 16. e5 {[%clk 0:02:20]}  dxe5 {[%clk 0:02:02]} 17. Bxc5 {[%clk 0:02:20]}  Rf7 {[%clk 0:01:56]} 18. g3 {[%clk 0:01:35]}  Rc8 {[%clk 0:01:55]} 19. b4 {[%clk 0:01:33]}  Nd7 {[%clk 0:01:16]} 20. Ne4 {[%clk 0:01:29]}  Nxc5 {[%clk 0:01:16]} 21. bxc5 {[%clk 0:01:21]}  Qa5 {[%clk 0:01:16]} 22. Qg4 {[%clk 0:00:43]}  Qe1+ {[%clk 0:00:56]} 23. Kb2 {[%clk 0:00:42]}  Qb4+ {[%clk 0:00:57]} 24. Kc1 {[%clk 0:00:41]}  Rxc5 {[%clk 0:00:40]} 25. Nf6+ {[%clk 0:00:38]}  Rxf6 {[%clk 0:00:37]} 26. Qxb4 {[%clk 0:00:39]}  Bf8 {[%clk 0:00:37]} 27. Qh4 {[%clk 0:00:35]}  Rf7 {[%clk 0:00:35]} 28. Bh3 {[%clk 0:00:33]}  Be7 {[%clk 0:00:35]} 29. Qh6 {[%clk 0:00:25]}  Bf8 {[%clk 0:00:32]} 30. Qe3 {[%clk 0:00:24]}  Kh8 {[%clk 0:00:29]} 31. Be6 {[%clk 0:00:23]}  Rfc7 {[%clk 0:00:30]} 32. Qxe5+ {[%clk 0:00:18]}  Bg7 {[%clk 0:00:30]} 33. Qe4 {[%clk 0:00:18]}  Bf8 {[%clk 0:00:17]} 34. Qxg6 {[%clk 0:00:15]}  Rg7 {[%clk 0:00:18]} 35. Rxh7+ {[%clk 0:00:14]} 1-0


[Site "https://www.chess.com"]

[Event "Titled Tuesday Blitz February 28 Early 2023"]
[White "Borrmann, Laurenz"]
[Black "polandchessplayer"]
[WhiteFideId "312187930"]
[WhiteElo "2307"]
[BlackElo "2768"]
[Result "1/2-1/2"]
[Round "04"]
[TimeControl "180+2"]
[Date "2023.02.28"]
[WhiteClock "0:00:03"]
[BlackClock "0:00:07"]

1. d4 {[%clk 0:03:00]}  Nf6 {[%clk 0:03:00]} 2. c4 {[%clk 0:03:01]}  c5 {[%clk 0:03:00]} 3. d5 {[%clk 0:03:01]}  e6 {[%clk 0:03:01]} 4. Nc3 {[%clk 0:03:00]}  exd5 {[%clk 0:03:01]} 5. cxd5 {[%clk 0:03:01]}  d6 {[%clk 0:03:02]} 6. e4 {[%clk 0:03:02]}  g6 {[%clk 0:03:02]} 7. f4 {[%clk 0:03:02]}  Bg7 {[%clk 0:03:03]} 8. Bb5+ {[%clk 0:03:01]}  Nfd7 {[%clk 0:03:03]} 9. a4 {[%clk 0:03:01]}  O-O {[%clk 0:03:03]} 10. Nf3 {[%clk 0:02:59]}  Na6 {[%clk 0:03:04]} 11. O-O {[%clk 0:03:00]}  Nc7 {[%clk 0:03:03]} 12. Be2 {[%clk 0:02:52]}  Re8 {[%clk 0:03:02]} 13. Kh1 {[%clk 0:02:41]}  a6 {[%clk 0:02:59]} 14. f5 {[%clk 0:02:27]}  Ne5 {[%clk 0:02:49]} 15. Bg5 {[%clk 0:02:24]}  f6 {[%clk 0:02:49]} 16. Bf4 {[%clk 0:02:24]}  Nxf3 {[%clk 0:02:35]} 17. Bxf3 {[%clk 0:02:23]}  g5 {[%clk 0:02:35]} 18. Bg3 {[%clk 0:02:22]}  Qe7 {[%clk 0:02:29]} 19. a5 {[%clk 0:02:17]}  Bd7 {[%clk 0:02:29]} 20. Qb3 {[%clk 0:02:13]}  Nb5 {[%clk 0:02:29]} 21. Nxb5 {[%clk 0:02:02]}  Bxb5 {[%clk 0:02:30]} 22. Rfe1 {[%clk 0:02:01]}  Rac8 {[%clk 0:02:15]} 23. Bh5 {[%clk 0:01:49]}  Red8 {[%clk 0:02:13]} 24. Be2 {[%clk 0:01:48]}  c4 {[%clk 0:02:01]} 25. Qc2 {[%clk 0:01:46]}  Bf8 {[%clk 0:01:53]} 26. h4 {[%clk 0:01:16]}  h6 {[%clk 0:01:40]} 27. Bf3 {[%clk 0:01:11]}  Rc7 {[%clk 0:01:31]} 28. Rad1 {[%clk 0:01:07]}  Rdc8 {[%clk 0:01:27]} 29. Kg1 {[%clk 0:00:49]}  Qe8 {[%clk 0:01:25]} 30. hxg5 {[%clk 0:00:46]}  Ba4 {[%clk 0:01:22]} 31. Qc3 {[%clk 0:00:46]}  Bxd1 {[%clk 0:01:20]} 32. Bxd1 {[%clk 0:00:29]}  fxg5 {[%clk 0:01:10]} 33. e5 {[%clk 0:00:30]}  dxe5 {[%clk 0:01:10]} 34. Bxe5 {[%clk 0:00:31]}  Qf7 {[%clk 0:01:06]} 35. Bxc7 {[%clk 0:00:20]}  Rxc7 {[%clk 0:01:07]} 36. Re6 {[%clk 0:00:15]}  Qxf5 {[%clk 0:00:58]} 37. Bc2 {[%clk 0:00:07]}  Bc5+ {[%clk 0:00:58]} 38. Kh2 {[%clk 0:00:07]}  Qf4+ {[%clk 0:00:48]} 39. g3 {[%clk 0:00:07]}  Qf2+ {[%clk 0:00:48]} 40. Kh3 {[%clk 0:00:08]}  g4+ {[%clk 0:00:45]} 41. Kxg4 {[%clk 0:00:06]}  Rg7+ {[%clk 0:00:45]} 42. Bg6 {[%clk 0:00:06]}  h5+ {[%clk 0:00:41]} 43. Kg5 {[%clk 0:00:03]}  Be7+ {[%clk 0:00:35]} 44. Kh6 {[%clk 0:00:03]}  Bf8 {[%clk 0:00:34]} 45. Kxh5 {[%clk 0:00:03]}  Qh2+ {[%clk 0:00:34]} 46. Kg4 {[%clk 0:00:04]}  Qh6 {[%clk 0:00:33]} 47. Qf6 {[%clk 0:00:04]}  c3 {[%clk 0:00:20]} 48. bxc3 {[%clk 0:00:03]}  Qh1 {[%clk 0:00:07]} 49. Re8 {[%clk 0:00:02]}  Qd1+ {[%clk 0:00:07]} 50. Kg5 {[%clk 0:00:02]}  Qd2+ {[%clk 0:00:06]} 51. Kh5 {[%clk 0:00:02]}  Qd1+ {[%clk 0:00:06]} 52. Kh4 {[%clk 0:00:02]}  Qh1+ {[%clk 0:00:06]} 53. Kg4 {[%clk 0:00:02]}  Qd1+ {[%clk 0:00:07]} 54. Kh3 {[%clk 0:00:02]}  Qh1+ {[%clk 0:00:07]} 55. Kg4 {[%clk 0:00:03]} 1/2-1/2


[Site "https://www.chess.com"]

[Event "Titled Tuesday Blitz February 28 Early 2023"]
[White "Florescu, Codrut-Constantin"]
[Black "Gledura, Benjamin"]
[WhiteFideId "1202200"]
[BlackFideId "712779"]
[WhiteElo "2191"]
[BlackElo "2537"]
[Result "1/2-1/2"]
[Round "04"]
[TimeControl "180+2"]
[Date "2023.02.28"]
[WhiteClock "0:00:42"]
[BlackClock "0:00:20"]

1. e4 {[%clk 0:03:00]}  e6 {[%clk 0:02:53]} 2. Nf3 {[%clk 0:03:00]}  d5 {[%clk 0:02:52]} 3. e5 {[%clk 0:03:01]}  c5 {[%clk 0:02:52]} 4. b4 {[%clk 0:03:01]}  cxb4 {[%clk 0:02:48]} 5. a3 {[%clk 0:03:00]}  bxa3 {[%clk 0:02:46]} 6. d4 {[%clk 0:03:00]}  Nc6 {[%clk 0:02:43]} 7. c3 {[%clk 0:02:59]}  Bd7 {[%clk 0:02:41]} 8. Bd3 {[%clk 0:02:58]}  Nh6 {[%clk 0:02:28]} 9. O-O {[%clk 0:02:56]}  Nf5 {[%clk 0:02:28]} 10. Ng5 {[%clk 0:02:54]}  Be7 {[%clk 0:02:25]} 11. Nh3 {[%clk 0:02:41]}  O-O {[%clk 0:02:23]} 12. Nf4 {[%clk 0:02:40]}  Na5 {[%clk 0:02:00]} 13. Nh5 {[%clk 0:02:37]}  g6 {[%clk 0:01:57]} 14. Bxf5 {[%clk 0:01:57]}  exf5 {[%clk 0:01:56]} 15. Bxa3 {[%clk 0:01:52]}  gxh5 {[%clk 0:01:34]} 16. Bxe7 {[%clk 0:01:48]}  Qxe7 {[%clk 0:01:35]} 17. Rxa5 {[%clk 0:01:48]}  Be6 {[%clk 0:01:34]} 18. Qxh5 {[%clk 0:01:46]}  Kh8 {[%clk 0:01:33]} 19. Nd2 {[%clk 0:01:46]}  Rg8 {[%clk 0:01:33]} 20. Nf3 {[%clk 0:01:44]}  b6 {[%clk 0:01:31]} 21. Ra2 {[%clk 0:01:38]}  Rac8 {[%clk 0:01:31]} 22. Rfa1 {[%clk 0:01:37]}  Rc7 {[%clk 0:01:30]} 23. h4 {[%clk 0:01:37]}  Rg7 {[%clk 0:01:10]} 24. Ng5 {[%clk 0:01:29]}  Bc8 {[%clk 0:01:09]} 25. Qh6 {[%clk 0:01:19]}  Kg8 {[%clk 0:00:53]} 26. Qf6 {[%clk 0:01:17]}  Qxf6 {[%clk 0:00:50]} 27. exf6 {[%clk 0:01:17]}  Rg6 {[%clk 0:00:50]} 28. Rxa7 {[%clk 0:01:17]}  Rxa7 {[%clk 0:00:50]} 29. Rxa7 {[%clk 0:01:17]}  Rxf6 {[%clk 0:00:50]} 30. Rc7 {[%clk 0:01:10]}  Ba6 {[%clk 0:00:48]} 31. Rd7 {[%clk 0:01:10]}  Bc4 {[%clk 0:00:46]} 32. f4 {[%clk 0:01:08]}  h6 {[%clk 0:00:43]} 33. Nf3 {[%clk 0:01:08]}  Re6 {[%clk 0:00:38]} 34. Ne5 {[%clk 0:01:07]}  f6 {[%clk 0:00:36]} 35. Ng6 {[%clk 0:01:07]}  Bd3 {[%clk 0:00:30]} 36. Rxd5 {[%clk 0:01:03]}  Re2 {[%clk 0:00:27]} 37. Rd6 {[%clk 0:01:02]}  Be4 {[%clk 0:00:27]} 38. h5 {[%clk 0:00:59]}  Rxg2+ {[%clk 0:00:26]} 39. Kf1 {[%clk 0:00:59]}  Rc2 {[%clk 0:00:25]} 40. Rxb6 {[%clk 0:00:53]}  Rxc3 {[%clk 0:00:25]} 41. Rxf6 {[%clk 0:00:53]}  Kg7 {[%clk 0:00:25]} 42. Rd6 {[%clk 0:00:52]}  Rh3 {[%clk 0:00:21]} 43. Rd7+ {[%clk 0:00:52]}  Kf6 {[%clk 0:00:20]} 44. Rd6+ {[%clk 0:00:52]}  Kf7 {[%clk 0:00:20]} 45. Rd7+ {[%clk 0:00:51]}  Ke6 {[%clk 0:00:19]} 46. Nf8+ {[%clk 0:00:49]}  Kf6 {[%clk 0:00:20]} 47. Nh7+ {[%clk 0:00:41]}  Ke6 {[%clk 0:00:20]} 48. Nf8+ {[%clk 0:00:41]}  Kf6 {[%clk 0:00:20]} 49. Nh7+ {[%clk 0:00:42]}  Ke6 {[%clk 0:00:20]} 50. Nf8+ {[%clk 0:00:42]} 1/2-1/2


[Site "https://www.chess.com"]

[Event "Titled Tuesday Blitz February 28 Early 2023"]
[White "Milikow, Yoav"]
[Black "Turzo, Attila"]
[WhiteFideId "2822237"]
[BlackFideId "704954"]
[WhiteElo "2410"]
[BlackElo "2542"]
[Result "1-0"]
[Round "04"]
[TimeControl "180+2"]
[Date "2023.02.28"]
[WhiteClock "0:00:40"]
[BlackClock "0:00:39"]

1. d4 {[%clk 0:02:58]}  Nf6 {[%clk 0:02:59]} 2. c4 {[%clk 0:02:54]}  c5 {[%clk 0:03:00]} 3. d5 {[%clk 0:02:53]}  b5 {[%clk 0:03:00]} 4. cxb5 {[%clk 0:02:53]}  a6 {[%clk 0:03:00]} 5. b6 {[%clk 0:02:54]}  g6 {[%clk 0:02:58]} 6. Nc3 {[%clk 0:02:54]}  d6 {[%clk 0:02:58]} 7. e4 {[%clk 0:02:54]}  Nbd7 {[%clk 0:02:56]} 8. Nf3 {[%clk 0:02:46]}  Rb8 {[%clk 0:02:54]} 9. Nd2 {[%clk 0:02:42]}  Nxb6 {[%clk 0:02:52]} 10. Be2 {[%clk 0:02:38]}  Bg7 {[%clk 0:02:52]} 11. O-O {[%clk 0:02:38]}  O-O {[%clk 0:02:52]} 12. Rb1 {[%clk 0:02:35]}  Ne8 {[%clk 0:02:52]} 13. Qc2 {[%clk 0:02:34]}  Nc7 {[%clk 0:02:52]} 14. a4 {[%clk 0:02:32]}  e6 {[%clk 0:02:42]} 15. a5 {[%clk 0:02:22]}  Nba8 {[%clk 0:02:29]} 16. Nc4 {[%clk 0:02:10]}  exd5 {[%clk 0:02:28]} 17. Nxd5 {[%clk 0:02:02]}  Nxd5 {[%clk 0:02:24]} 18. exd5 {[%clk 0:02:03]}  Nc7 {[%clk 0:02:22]} 19. Bf4 {[%clk 0:02:00]}  Nb5 {[%clk 0:02:12]} 20. Bd3 {[%clk 0:01:53]}  Qf6 {[%clk 0:02:02]} 21. Qd2 {[%clk 0:01:46]}  Qd8 {[%clk 0:01:43]} 22. Rfe1 {[%clk 0:01:33]}  Bb7 {[%clk 0:01:41]} 23. Bf1 {[%clk 0:01:27]}  Qd7 {[%clk 0:01:35]} 24. Nb6 {[%clk 0:01:24]}  Qc7 {[%clk 0:01:24]} 25. Re3 {[%clk 0:01:04]}  Rfe8 {[%clk 0:01:21]} 26. Rbe1 {[%clk 0:01:04]}  Rxe3 {[%clk 0:01:17]} 27. Rxe3 {[%clk 0:01:01]}  Rd8 {[%clk 0:01:15]} 28. Qe2 {[%clk 0:00:49]}  Nd4 {[%clk 0:01:12]} 29. Qe1 {[%clk 0:00:47]}  Nc2 {[%clk 0:01:09]} 30. Re8+ {[%clk 0:00:47]}  Bf8 {[%clk 0:01:03]} 31. Qe4 {[%clk 0:00:48]}  Kg7 {[%clk 0:00:47]} 32. Rxd8 {[%clk 0:00:45]}  Qxd8 {[%clk 0:00:47]} 33. Qxc2 {[%clk 0:00:45]}  Be7 {[%clk 0:00:46]} 34. Qd2 {[%clk 0:00:44]}  h5 {[%clk 0:00:43]} 35. h3 {[%clk 0:00:42]}  Bf6 {[%clk 0:00:43]} 36. Nc4 {[%clk 0:00:42]}  Qa8 {[%clk 0:00:42]} 37. Bxd6 {[%clk 0:00:40]}  Bxd5 {[%clk 0:00:42]} 38. Nb6 {[%clk 0:00:40]}  Qc6 {[%clk 0:00:40]} 39. Qxd5 {[%clk 0:00:40]}  Qxd5 {[%clk 0:00:40]} 40. Nxd5 {[%clk 0:00:41]}  Bxb2 {[%clk 0:00:41]} 41. Bxc5 {[%clk 0:00:41]}  Be5 {[%clk 0:00:39]} 42. Bxa6 {[%clk 0:00:40]} 1-0


[Site "https://www.chess.com"]